[Event "Titled Tuesday Blitz April 19 Early 2022"]
[White "Alimpic, Aleksa"]
[Black "Winkels, Marcel"]
[WhiteFideId "974323"]
[BlackFideId "1003887"]
[WhiteElo "2169"]
[BlackElo "1900"]
[Result "1-0"]
[Round "10"]
[TimeControl "180+1"]
[Date "2022.04.19"]
[WhiteClock "0:00:03"]
[BlackClock "0:00:01"]

1. Nf3 {[%clk 0:03:00]}  Nf6 {[%clk 0:02:58]} 2. g3 {[%clk 0:02:59]}  g6 {[%clk 0:02:58]} 3. b3 {[%clk 0:02:59]}  Bg7 {[%clk 0:02:58]} 4. Bb2 {[%clk 0:03:00]}  O-O {[%clk 0:02:58]} 5. Bg2 {[%clk 0:03:00]}  d6 {[%clk 0:02:58]} 6. d4 {[%clk 0:03:00]}  e5 {[%clk 0:02:58]} 7. dxe5 {[%clk 0:02:58]}  Nfd7 {[%clk 0:02:57]} 8. O-O {[%clk 0:02:55]}  Nc6 {[%clk 0:02:55]} 9. c4 {[%clk 0:02:50]}  Ndxe5 {[%clk 0:02:53]} 10. Nxe5 {[%clk 0:02:47]}  dxe5 {[%clk 0:02:50]} 11. Nc3 {[%clk 0:02:43]}  Be6 {[%clk 0:02:49]} 12. Nd5 {[%clk 0:02:40]}  Bxd5 {[%clk 0:02:46]} 13. cxd5 {[%clk 0:02:34]}  Nd4 {[%clk 0:02:38]} 14. e3 {[%clk 0:02:24]}  Nf5 {[%clk 0:02:37]} 15. Rc1 {[%clk 0:02:15]}  Nd6 {[%clk 0:02:31]} 16. Qc2 {[%clk 0:01:52]}  Rc8 {[%clk 0:02:29]} 17. e4 {[%clk 0:01:51]}  Qe7 {[%clk 0:02:13]} 18. Ba3 {[%clk 0:01:44]}  f5 {[%clk 0:02:04]} 19. Bxd6 {[%clk 0:01:35]}  Qxd6 {[%clk 0:01:57]} 20. Qc5 {[%clk 0:01:35]}  Qa6 {[%clk 0:01:42]} 21. a4 {[%clk 0:01:09]}  Bh6 {[%clk 0:01:29]} 22. Rc2 {[%clk 0:01:06]}  Rfd8 {[%clk 0:01:20]} 23. Qc4 {[%clk 0:01:04]}  Qd6 {[%clk 0:01:16]} 24. Qc5 {[%clk 0:00:49]}  Kf7 {[%clk 0:00:53]} 25. Bh3 {[%clk 0:00:43]}  Qxc5 {[%clk 0:00:42]} 26. Rxc5 {[%clk 0:00:41]}  Kf6 {[%clk 0:00:43]} 27. Rd1 {[%clk 0:00:33]}  Rd6 {[%clk 0:00:41]} 28. Rb5 {[%clk 0:00:21]}  b6 {[%clk 0:00:28]} 29. f3 {[%clk 0:00:19]}  Rcd8 {[%clk 0:00:26]} 30. Rb4 {[%clk 0:00:11]}  c6 {[%clk 0:00:25]} 31. exf5 {[%clk 0:00:07]}  gxf5 {[%clk 0:00:23]} 32. Rh4 {[%clk 0:00:07]}  Kg6 {[%clk 0:00:15]} 33. g4 {[%clk 0:00:05]}  Bg5 {[%clk 0:00:08]} 34. gxf5+ {[%clk 0:00:04]}  Kg7 {[%clk 0:00:07]} 35. Rg4 {[%clk 0:00:04]}  Kf6 {[%clk 0:00:04]} 36. Rg2 {[%clk 0:00:02]}  cxd5 {[%clk 0:00:02]} 37. Rc2 {[%clk 0:00:02]}  d4 {[%clk 0:00:02]} 38. Rc7 {[%clk 0:00:01]}  d3 {[%clk 0:00:02]} 39. Rc3 {[%clk 0:00:02]}  d2 {[%clk 0:00:02]} 40. Kf1 {[%clk 0:00:02]}  Rd3 {[%clk 0:00:01]} 41. Rxd3 {[%clk 0:00:02]}  Rxd3 {[%clk 0:00:02]} 42. Ke2 {[%clk 0:00:03]}  Rxb3 {[%clk 0:00:01]} 43. Bg4 {[%clk 0:00:03]}  Rc3 {[%clk 0:00:01]} 44. h4 {[%clk 0:00:03]} 1-0


[Site "https://www.chess.com"]

[Event "Titled Tuesday Blitz April 19 Early 2022"]
[White "Al-Tarboush, Ward"]
[Black "Todorovic, Bojan"]
[WhiteFideId "7601450"]
[BlackFideId "917087"]
[WhiteElo "2276"]
[BlackElo "2266"]
[Result "0-1"]
[Round "10"]
[TimeControl "180+1"]
[Date "2022.04.19"]
[WhiteClock "0:00:54"]
[BlackClock "0:00:05"]

1. e4 {[%clk 0:03:00]}  e5 {[%clk 0:02:50]} 2. Nf3 {[%clk 0:02:59]}  Nc6 {[%clk 0:02:48]} 3. Bb5 {[%clk 0:02:58]}  Nf6 {[%clk 0:02:46]} 4. O-O {[%clk 0:02:58]}  Nxe4 {[%clk 0:02:45]} 5. d4 {[%clk 0:02:57]}  Nd6 {[%clk 0:02:45]} 6. Bxc6 {[%clk 0:02:57]}  dxc6 {[%clk 0:02:46]} 7. dxe5 {[%clk 0:02:57]}  Nf5 {[%clk 0:02:46]} 8. Qxd8+ {[%clk 0:02:56]}  Kxd8 {[%clk 0:02:46]} 9. Nc3 {[%clk 0:02:56]}  Ke8 {[%clk 0:02:45]} 10. b3 {[%clk 0:02:56]}  Bb4 {[%clk 0:02:40]} 11. Bb2 {[%clk 0:02:56]}  Bxc3 {[%clk 0:02:37]} 12. Bxc3 {[%clk 0:02:56]}  Be6 {[%clk 0:02:29]} 13. Rad1 {[%clk 0:02:55]}  c5 {[%clk 0:02:28]} 14. Ng5 {[%clk 0:02:54]}  Ke7 {[%clk 0:02:24]} 15. g4 {[%clk 0:02:50]}  Nh4 {[%clk 0:02:07]} 16. h3 {[%clk 0:02:50]}  h5 {[%clk 0:02:03]} 17. f4 {[%clk 0:02:49]}  hxg4 {[%clk 0:01:59]} 18. Nxe6 {[%clk 0:02:49]}  fxe6 {[%clk 0:01:59]} 19. hxg4 {[%clk 0:02:49]}  Raf8 {[%clk 0:01:28]} 20. b4 {[%clk 0:02:44]}  g5 {[%clk 0:01:14]} 21. bxc5 {[%clk 0:02:42]}  c6 {[%clk 0:00:56]} 22. Rb1 {[%clk 0:02:36]}  Rb8 {[%clk 0:00:54]} 23. f5 {[%clk 0:02:36]}  exf5 {[%clk 0:00:50]} 24. gxf5 {[%clk 0:02:37]}  Rhf8 {[%clk 0:00:50]} 25. f6+ {[%clk 0:02:29]}  Ke6 {[%clk 0:00:50]} 26. Rfd1 {[%clk 0:02:27]}  Nf5 {[%clk 0:00:39]} 27. Kf2 {[%clk 0:02:21]}  Rh8 {[%clk 0:00:37]} 28. Rh1 {[%clk 0:02:20]}  Rh4 {[%clk 0:00:35]} 29. Rxh4 {[%clk 0:02:19]}  gxh4 {[%clk 0:00:34]} 30. Rg1 {[%clk 0:02:19]}  b5 {[%clk 0:00:32]} 31. cxb6 {[%clk 0:02:16]}  axb6 {[%clk 0:00:32]} 32. a4 {[%clk 0:02:12]}  Ra8 {[%clk 0:00:31]} 33. Rg4 {[%clk 0:02:12]}  c5 {[%clk 0:00:19]} 34. Kf3 {[%clk 0:02:02]}  Rd8 {[%clk 0:00:16]} 35. Rf4 {[%clk 0:01:59]}  Rd1 {[%clk 0:00:14]} 36. f7 {[%clk 0:01:54]}  Rf1+ {[%clk 0:00:11]} 37. Kg4 {[%clk 0:01:54]}  Nh6+ {[%clk 0:00:10]} 38. Kg5 {[%clk 0:01:49]}  Rxf4 {[%clk 0:00:10]} 39. Kxf4 {[%clk 0:01:48]}  Nxf7 {[%clk 0:00:10]} 40. Bb2 {[%clk 0:01:28]}  h3 {[%clk 0:00:09]} 41. Kg3 {[%clk 0:01:28]}  Nxe5 {[%clk 0:00:09]} 42. Kxh3 {[%clk 0:01:29]}  Nc4 {[%clk 0:00:09]} 43. Bc1 {[%clk 0:01:24]}  Kd5 {[%clk 0:00:08]} 44. Bg5 {[%clk 0:01:17]}  Kd4 {[%clk 0:00:07]} 45. Bf6+ {[%clk 0:01:17]}  Ke3 {[%clk 0:00:07]} 46. Kg4 {[%clk 0:01:17]}  Kd2 {[%clk 0:00:07]} 47. c3 {[%clk 0:01:18]}  Nb2 {[%clk 0:00:07]} 48. a5 {[%clk 0:01:07]}  bxa5 {[%clk 0:00:07]} 49. Be7 {[%clk 0:01:05]}  Nd3 {[%clk 0:00:07]} 50. Kf3 {[%clk 0:01:01]}  Kxc3 {[%clk 0:00:06]} 51. Ke2 {[%clk 0:01:02]}  c4 {[%clk 0:00:05]} 52. Kd1 {[%clk 0:01:01]}  Kb3 {[%clk 0:00:04]} 53. Kd2 {[%clk 0:00:58]}  a4 {[%clk 0:00:05]} 54. Bf6 {[%clk 0:00:55]}  a3 {[%clk 0:00:05]} 55. Bg7 {[%clk 0:00:55]}  a2 {[%clk 0:00:05]} 56. Bh8 {[%clk 0:00:55]}  Nb4 {[%clk 0:00:05]} 57. Kc1 {[%clk 0:00:54]}  Nc2 {[%clk 0:00:05]} 0-1


[Site "https://www.chess.com"]

[Event "Titled Tuesday Blitz April 19 Early 2022"]
[White "Ambartsumova, Karina"]
[Black "Chernomordik, Pavel"]
[WhiteFideId "4166299"]
[BlackFideId "2804530"]
[WhiteElo "2262"]
[BlackElo "2220"]
[Result "1-0"]
[Round "10"]
[TimeControl "180+1"]
[Date "2022.04.19"]
[WhiteClock "0:00:30"]
[BlackClock "0:00:02"]

1. d4 {[%clk 0:02:52]}  g6 {[%clk 0:02:59]} 2. Nf3 {[%clk 0:02:52]}  Bg7 {[%clk 0:02:59]} 3. g3 {[%clk 0:02:53]}  d6 {[%clk 0:02:59]} 4. Bg2 {[%clk 0:02:54]}  Nf6 {[%clk 0:02:59]} 5. c4 {[%clk 0:02:54]}  O-O {[%clk 0:02:59]} 6. Nc3 {[%clk 0:02:54]}  c6 {[%clk 0:02:59]} 7. e4 {[%clk 0:02:55]}  Nfd7 {[%clk 0:02:58]} 8. O-O {[%clk 0:02:55]}  a6 {[%clk 0:02:57]} 9. a4 {[%clk 0:02:50]}  a5 {[%clk 0:02:57]} 10. Bg5 {[%clk 0:02:47]}  Na6 {[%clk 0:02:55]} 11. Qd2 {[%clk 0:02:47]}  Nb4 {[%clk 0:02:52]} 12. Rad1 {[%clk 0:02:46]}  b6 {[%clk 0:02:46]} 13. Rfe1 {[%clk 0:02:46]}  Ba6 {[%clk 0:02:44]} 14. b3 {[%clk 0:02:44]}  Re8 {[%clk 0:02:41]} 15. e5 {[%clk 0:02:42]}  dxe5 {[%clk 0:02:35]} 16. dxe5 {[%clk 0:02:38]}  Nc5 {[%clk 0:02:34]} 17. Qxd8 {[%clk 0:02:38]}  Raxd8 {[%clk 0:02:33]} 18. Rxd8 {[%clk 0:02:38]}  Rxd8 {[%clk 0:02:33]} 19. Bxe7 {[%clk 0:02:38]}  Rd3 {[%clk 0:02:29]} 20. Bxc5 {[%clk 0:02:31]}  bxc5 {[%clk 0:02:24]} 21. Re3 {[%clk 0:02:30]}  Rxe3 {[%clk 0:02:12]} 22. fxe3 {[%clk 0:02:31]}  Nc2 {[%clk 0:02:11]} 23. Kf2 {[%clk 0:02:28]}  Bh6 {[%clk 0:02:06]} 24. Nd1 {[%clk 0:02:11]}  Bc8 {[%clk 0:01:55]} 25. Ke2 {[%clk 0:02:07]}  Na1 {[%clk 0:01:43]} 26. Nd2 {[%clk 0:02:00]}  Bg7 {[%clk 0:01:37]} 27. Bxc6 {[%clk 0:01:55]}  Bxe5 {[%clk 0:01:35]} 28. Kd3 {[%clk 0:01:48]}  Bg4 {[%clk 0:01:30]} 29. Bf3 {[%clk 0:01:46]}  Bf5+ {[%clk 0:01:24]} 30. e4 {[%clk 0:01:44]}  Bh3 {[%clk 0:01:20]} 31. Ne3 {[%clk 0:01:41]}  Kf8 {[%clk 0:01:11]} 32. Nc2 {[%clk 0:01:19]}  Ke7 {[%clk 0:01:01]} 33. Nxa1 {[%clk 0:01:18]}  Bxa1 {[%clk 0:01:00]} 34. Nb1 {[%clk 0:01:05]}  Ke6 {[%clk 0:00:53]} 35. Na3 {[%clk 0:01:00]}  Ke5 {[%clk 0:00:51]} 36. Nc2 {[%clk 0:01:00]}  Bd4 {[%clk 0:00:38]} 37. Nxd4 {[%clk 0:00:52]}  cxd4 {[%clk 0:00:38]} 38. c5 {[%clk 0:00:53]}  Be6 {[%clk 0:00:36]} 39. Bd1 {[%clk 0:00:48]}  f5 {[%clk 0:00:32]} 40. exf5 {[%clk 0:00:48]}  gxf5 {[%clk 0:00:26]} 41. c6 {[%clk 0:00:44]}  Bc8 {[%clk 0:00:17]} 42. Kc4 {[%clk 0:00:33]}  Ba6+ {[%clk 0:00:12]} 43. Kc5 {[%clk 0:00:32]}  d3 {[%clk 0:00:11]} 44. c7 {[%clk 0:00:32]}  d2 {[%clk 0:00:10]} 45. b4 {[%clk 0:00:30]}  axb4 {[%clk 0:00:09]} 46. Kxb4 {[%clk 0:00:31]}  Kd4 {[%clk 0:00:09]} 47. Ka5 {[%clk 0:00:31]}  Bc8 {[%clk 0:00:08]} 48. Kb6 {[%clk 0:00:31]}  Kc3 {[%clk 0:00:08]} 49. a5 {[%clk 0:00:30]}  Kb2 {[%clk 0:00:05]} 50. a6 {[%clk 0:00:30]}  Kc1 {[%clk 0:00:05]} 51. Bf3 {[%clk 0:00:30]}  d1=Q {[%clk 0:00:02]} 52. Bxd1 {[%clk 0:00:30]} 1-0


[Site "https://www.chess.com"]

[Event "Titled Tuesday Blitz April 19 Early 2022"]
[White "Aradhya, Garg"]
[Black "Costachi, Mihnea"]
[WhiteFideId "25006746"]
[BlackFideId "1217518"]
[WhiteElo "2169"]
[BlackElo "2476"]
[Result "1-0"]
[Round "10"]
[TimeControl "180+1"]
[Date "2022.04.19"]
[WhiteClock "0:02:27"]
[BlackClock "0:02:35"]

1. d4 {[%clk 0:02:57]}  Nf6 {[%clk 0:03:00]} 2. c4 {[%clk 0:02:56]}  c6 {[%clk 0:03:00]} 3. Nf3 {[%clk 0:02:53]}  d5 {[%clk 0:03:00]} 4. g3 {[%clk 0:02:53]}  g6 {[%clk 0:02:58]} 5. Bg2 {[%clk 0:02:53]}  Bg7 {[%clk 0:02:59]} 6. O-O {[%clk 0:02:53]}  O-O {[%clk 0:03:00]} 7. Nbd2 {[%clk 0:02:51]}  Ne4 {[%clk 0:02:59]} 8. b3 {[%clk 0:02:50]}  Bf5 {[%clk 0:02:52]} 9. Bb2 {[%clk 0:02:49]}  Nxd2 {[%clk 0:02:51]} 10. Qxd2 {[%clk 0:02:49]}  Be4 {[%clk 0:02:51]} 11. Rfd1 {[%clk 0:02:48]}  e6 {[%clk 0:02:51]} 12. Rac1 {[%clk 0:02:45]}  Nd7 {[%clk 0:02:52]} 13. Bf1 {[%clk 0:02:42]}  Bxf3 {[%clk 0:02:50]} 14. exf3 {[%clk 0:02:43]}  a5 {[%clk 0:02:47]} 15. h4 {[%clk 0:02:41]}  a4 {[%clk 0:02:46]} 16. Bc3 {[%clk 0:02:40]}  axb3 {[%clk 0:02:43]} 17. axb3 {[%clk 0:02:40]}  Qb6 {[%clk 0:02:43]} 18. c5 {[%clk 0:02:39]}  Qc7 {[%clk 0:02:41]} 19. f4 {[%clk 0:02:36]}  Nf6 {[%clk 0:02:40]} 20. f3 {[%clk 0:02:33]}  Ra3 {[%clk 0:02:35]} 21. Ra1 {[%clk 0:02:31]}  Rfa8 {[%clk 0:02:36]} 22. Rxa3 {[%clk 0:02:30]}  Rxa3 {[%clk 0:02:36]} 23. Ra1 {[%clk 0:02:30]}  Ra8 {[%clk 0:02:37]} 24. Rxa8+ {[%clk 0:02:29]}  Qc8 {[%clk 0:02:35]} 25. Rxc8+ {[%clk 0:02:27]} 1-0


[Site "https://www.chess.com"]

[Event "Titled Tuesday Blitz April 19 Early 2022"]
[White "Avazkhonov, Alikhon"]
[Black "Sharafiev, Azat"]
[WhiteFideId "14208504"]
[BlackFideId "4186214"]
[WhiteElo "1739"]
[BlackElo "2299"]
[Result "0-1"]
[Round "10"]
[TimeControl "180+1"]
[Date "2022.04.19"]
[WhiteClock "0:00:01"]
[BlackClock "0:00:17"]

1. e4 {[%clk 0:02:47]}  c6 {[%clk 0:02:59]} 2. Nc3 {[%clk 0:02:46]}  d5 {[%clk 0:02:57]} 3. Nf3 {[%clk 0:02:47]}  dxe4 {[%clk 0:02:54]} 4. Nxe4 {[%clk 0:02:48]}  Nf6 {[%clk 0:02:54]} 5. Qe2 {[%clk 0:02:41]}  Nxe4 {[%clk 0:02:53]} 6. Qxe4 {[%clk 0:02:42]}  Qd5 {[%clk 0:02:53]} 7. Qf4 {[%clk 0:02:41]}  Qf5 {[%clk 0:02:50]} 8. Qe3 {[%clk 0:02:41]}  Qxc2 {[%clk 0:02:49]} 9. Bd3 {[%clk 0:02:40]}  Qa4 {[%clk 0:02:48]} 10. b3 {[%clk 0:02:41]}  Qa5 {[%clk 0:02:47]} 11. Ne5 {[%clk 0:02:30]}  Nd7 {[%clk 0:02:39]} 12. Bb2 {[%clk 0:02:01]}  Nxe5 {[%clk 0:02:37]} 13. Bxe5 {[%clk 0:02:01]}  f6 {[%clk 0:02:26]} 14. Bc3 {[%clk 0:01:38]}  Qb6 {[%clk 0:02:26]} 15. Bd4 {[%clk 0:01:37]}  Qc7 {[%clk 0:02:27]} 16. O-O {[%clk 0:01:38]}  e6 {[%clk 0:02:24]} 17. Bc4 {[%clk 0:01:15]}  Qd6 {[%clk 0:01:58]} 18. Rfe1 {[%clk 0:01:01]}  Bd7 {[%clk 0:01:57]} 19. Rac1 {[%clk 0:00:28]}  Be7 {[%clk 0:01:50]} 20. Bxe6 {[%clk 0:00:14]}  Bxe6 {[%clk 0:01:48]} 21. Bc5 {[%clk 0:00:14]}  Qe5 {[%clk 0:01:39]} 22. Qf3 {[%clk 0:00:06]}  Qb2 {[%clk 0:00:53]} 23. Rb1 {[%clk 0:00:01]}  Qxa2 {[%clk 0:00:50]} 24. Bxe7 {[%clk 0:00:02]}  Kxe7 {[%clk 0:00:49]} 25. Qe4 {[%clk 0:00:02]}  Rhe8 {[%clk 0:00:43]} 26. Qxe6+ {[%clk 0:00:03]}  Kf8 {[%clk 0:00:44]} 27. Qd6+ {[%clk 0:00:03]}  Kg8 {[%clk 0:00:44]} 28. Qd4 {[%clk 0:00:04]}  Rxe1+ {[%clk 0:00:41]} 29. Rxe1 {[%clk 0:00:04]}  Qxb3 {[%clk 0:00:41]} 30. h4 {[%clk 0:00:03]}  Qf7 {[%clk 0:00:41]} 31. Qg4 {[%clk 0:00:02]}  Re8 {[%clk 0:00:41]} 32. Ra1 {[%clk 0:00:02]}  a6 {[%clk 0:00:40]} 33. h5 {[%clk 0:00:03]}  h6 {[%clk 0:00:40]} 34. Ra5 {[%clk 0:00:02]}  Re5 {[%clk 0:00:39]} 35. Rxe5 {[%clk 0:00:02]}  fxe5 {[%clk 0:00:40]} 36. Qc8+ {[%clk 0:00:02]}  Kh7 {[%clk 0:00:41]} 37. g4 {[%clk 0:00:03]}  a5 {[%clk 0:00:36]} 38. Kg2 {[%clk 0:00:02]}  a4 {[%clk 0:00:37]} 39. Qa8 {[%clk 0:00:02]}  Qf4 {[%clk 0:00:34]} 40. Qe8 {[%clk 0:00:01]}  Qxg4+ {[%clk 0:00:34]} 41. Kf1 {[%clk 0:00:02]}  a3 {[%clk 0:00:33]} 42. Qxe5 {[%clk 0:00:02]}  Qd1+ {[%clk 0:00:33]} 43. Kg2 {[%clk 0:00:02]}  Qg4+ {[%clk 0:00:34]} 44. Kf1 {[%clk 0:00:02]}  a2 {[%clk 0:00:34]} 45. f4 {[%clk 0:00:02]}  Qd1+ {[%clk 0:00:20]} 46. Kg2 {[%clk 0:00:01]}  Qxd2+ {[%clk 0:00:21]} 47. Kg3 {[%clk 0:00:02]}  Qd3+ {[%clk 0:00:21]} 48. Kg4 {[%clk 0:00:03]}  Qb1 {[%clk 0:00:17]} 49. f5 {[%clk 0:00:01]}  a1=Q {[%clk 0:00:17]} 0-1


[Site "https://www.chess.com"]

[Event "Titled Tuesday Blitz April 19 Early 2022"]
[White "Bas Mas, Jose Joaquin"]
[Black "Khabinets, Ivan"]
[WhiteFideId "22219064"]
[BlackFideId "14115980"]
[WhiteElo "2212"]
[BlackElo "2114"]
[Result "1-0"]
[Round "10"]
[TimeControl "180+1"]
[Date "2022.04.19"]
[WhiteClock "0:00:06"]
[BlackClock "0:00:10"]

1. e4 {[%clk 0:03:00]}  c5 {[%clk 0:03:00]} 2. Nc3 {[%clk 0:03:00]}  Nc6 {[%clk 0:02:59]} 3. Bb5 {[%clk 0:03:00]}  Nd4 {[%clk 0:02:59]} 4. Nf3 {[%clk 0:03:01]}  e6 {[%clk 0:02:56]} 5. Bc4 {[%clk 0:03:01]}  Nf6 {[%clk 0:02:53]} 6. O-O {[%clk 0:02:59]}  a6 {[%clk 0:02:50]} 7. Nxd4 {[%clk 0:02:56]}  cxd4 {[%clk 0:02:44]} 8. Ne2 {[%clk 0:02:56]}  Nxe4 {[%clk 0:02:44]} 9. d3 {[%clk 0:02:52]}  Nd6 {[%clk 0:02:34]} 10. Nxd4 {[%clk 0:02:47]}  Nxc4 {[%clk 0:02:34]} 11. dxc4 {[%clk 0:02:48]}  Be7 {[%clk 0:02:34]} 12. Be3 {[%clk 0:02:39]}  O-O {[%clk 0:02:33]} 13. Qd2 {[%clk 0:02:34]}  d6 {[%clk 0:02:33]} 14. Rad1 {[%clk 0:02:30]}  Bd7 {[%clk 0:02:34]} 15. b3 {[%clk 0:02:26]}  Rc8 {[%clk 0:02:33]} 16. a4 {[%clk 0:02:24]}  Qc7 {[%clk 0:02:29]} 17. a5 {[%clk 0:02:17]}  Bc6 {[%clk 0:02:26]} 18. Nxc6 {[%clk 0:02:15]}  Qxc6 {[%clk 0:02:27]} 19. Bb6 {[%clk 0:02:12]}  h6 {[%clk 0:02:20]} 20. Rfe1 {[%clk 0:02:11]}  Rfe8 {[%clk 0:02:19]} 21. h3 {[%clk 0:02:10]}  Bf8 {[%clk 0:02:16]} 22. Qd4 {[%clk 0:02:01]}  d5 {[%clk 0:01:48]} 23. cxd5 {[%clk 0:01:56]}  exd5 {[%clk 0:01:49]} 24. Rxe8 {[%clk 0:01:38]}  Rxe8 {[%clk 0:01:50]} 25. Qxd5 {[%clk 0:01:33]}  Qxc2 {[%clk 0:01:44]} 26. Rf1 {[%clk 0:01:23]}  Qe4 {[%clk 0:01:24]} 27. Rd1 {[%clk 0:01:13]}  Qc2 {[%clk 0:01:22]} 28. Be3 {[%clk 0:01:02]}  Re5 {[%clk 0:01:08]} 29. Qd8 {[%clk 0:00:38]}  Qxb3 {[%clk 0:01:02]} 30. Bf4 {[%clk 0:00:31]}  Re8 {[%clk 0:00:54]} 31. Qd7 {[%clk 0:00:29]}  Re4 {[%clk 0:00:48]} 32. Bg3 {[%clk 0:00:23]}  Bc5 {[%clk 0:00:48]} 33. Kh2 {[%clk 0:00:22]}  Kf8 {[%clk 0:00:43]} 34. Qd8+ {[%clk 0:00:20]}  Re8 {[%clk 0:00:41]} 35. Qd7 {[%clk 0:00:17]}  Qe6 {[%clk 0:00:39]} 36. Qxb7 {[%clk 0:00:15]}  h5 {[%clk 0:00:33]} 37. Qd5 {[%clk 0:00:14]}  Bb4 {[%clk 0:00:29]} 38. Qxh5 {[%clk 0:00:08]}  Kg8 {[%clk 0:00:29]} 39. Rd5 {[%clk 0:00:06]}  g6 {[%clk 0:00:28]} 40. Qe5 {[%clk 0:00:04]}  Qxe5 {[%clk 0:00:22]} 41. Bxe5 {[%clk 0:00:05]}  Kf8 {[%clk 0:00:13]} 42. Bg3 {[%clk 0:00:04]}  Re2 {[%clk 0:00:12]} 43. Bd6+ {[%clk 0:00:03]}  Bxd6+ {[%clk 0:00:11]} 44. Rxd6 {[%clk 0:00:04]}  Rxf2 {[%clk 0:00:12]} 45. Rxa6 {[%clk 0:00:04]}  Ra2 {[%clk 0:00:13]} 46. Ra8+ {[%clk 0:00:04]}  Kg7 {[%clk 0:00:13]} 47. a6 {[%clk 0:00:05]}  Ra3 {[%clk 0:00:14]} 48. h4 {[%clk 0:00:05]}  Kf6 {[%clk 0:00:14]} 49. g3 {[%clk 0:00:05]}  Kg7 {[%clk 0:00:14]} 50. Kh3 {[%clk 0:00:06]}  Ra4 {[%clk 0:00:14]} 51. Kg2 {[%clk 0:00:05]}  Kf6 {[%clk 0:00:14]} 52. Kf3 {[%clk 0:00:06]}  Kg7 {[%clk 0:00:15]} 53. a7 {[%clk 0:00:05]}  Kf6 {[%clk 0:00:14]} 54. Ke3 {[%clk 0:00:06]}  Kg7 {[%clk 0:00:14]} 55. g4 {[%clk 0:00:06]}  Ra3+ {[%clk 0:00:11]} 56. Kd4 {[%clk 0:00:06]}  Ra4+ {[%clk 0:00:12]} 57. Kc3 {[%clk 0:00:06]}  Ra3+ {[%clk 0:00:12]} 58. Kb4 {[%clk 0:00:07]}  Ra1 {[%clk 0:00:12]} 59. Kb5 {[%clk 0:00:07]}  Rb1+ {[%clk 0:00:12]} 60. Kc6 {[%clk 0:00:08]}  Rc1+ {[%clk 0:00:13]} 61. Kb6 {[%clk 0:00:08]}  Rb1+ {[%clk 0:00:13]} 62. Kc7 {[%clk 0:00:08]}  Rc1+ {[%clk 0:00:14]} 63. Kd7 {[%clk 0:00:09]}  Rd1+ {[%clk 0:00:14]} 64. Kc6 {[%clk 0:00:09]}  Rc1+ {[%clk 0:00:14]} 65. Kd5 {[%clk 0:00:10]}  Rd1+ {[%clk 0:00:14]} 66. Ke4 {[%clk 0:00:10]}  Re1+ {[%clk 0:00:15]} 67. Kf3 {[%clk 0:00:10]}  Ra1 {[%clk 0:00:16]} 68. g5 {[%clk 0:00:10]}  Ra4 {[%clk 0:00:15]} 69. Kg3 {[%clk 0:00:09]}  Ra3+ {[%clk 0:00:15]} 70. Kf4 {[%clk 0:00:10]}  Ra4+ {[%clk 0:00:16]} 71. Kg3 {[%clk 0:00:10]}  Ra3+ {[%clk 0:00:15]} 72. Kf4 {[%clk 0:00:10]}  Ra5 {[%clk 0:00:15]} 73. Kg3 {[%clk 0:00:09]}  Ra4 {[%clk 0:00:16]} 74. Kf3 {[%clk 0:00:08]}  Kh7 {[%clk 0:00:12]} 75. Ke3 {[%clk 0:00:06]}  Ra1 {[%clk 0:00:11]} 76. Kd3 {[%clk 0:00:06]}  Rd1+ {[%clk 0:00:12]} 77. Kc2 {[%clk 0:00:06]}  Ra1 {[%clk 0:00:12]} 78. Kb2 {[%clk 0:00:07]}  Ra6 {[%clk 0:00:13]} 79. Kb3 {[%clk 0:00:07]}  Ra1 {[%clk 0:00:13]} 80. Kb4 {[%clk 0:00:07]}  Rb1+ {[%clk 0:00:12]} 81. Kc5 {[%clk 0:00:08]}  Rc1+ {[%clk 0:00:11]} 82. Kd6 {[%clk 0:00:08]}  Kg7 {[%clk 0:00:09]} 83. Rg8+ {[%clk 0:00:07]}  Kxg8 {[%clk 0:00:08]} 84. a8=Q+ {[%clk 0:00:07]}  Kg7 {[%clk 0:00:09]} 85. Qa4 {[%clk 0:00:05]}  Rf1 {[%clk 0:00:06]} 86. Qd4+ {[%clk 0:00:04]}  Kh7 {[%clk 0:00:06]} 87. Ke7 {[%clk 0:00:04]}  f6 {[%clk 0:00:04]} 88. gxf6 {[%clk 0:00:03]}  Kh6 {[%clk 0:00:05]} 89. Qd2+ {[%clk 0:00:03]}  Kh5 {[%clk 0:00:05]} 90. f7 {[%clk 0:00:03]}  Rxf7+ {[%clk 0:00:03]} 91. Kxf7 {[%clk 0:00:04]}  Kxh4 {[%clk 0:00:03]} 92. Qh2+ {[%clk 0:00:04]}  Kg4 {[%clk 0:00:04]} 93. Qg1+ {[%clk 0:00:04]}  Kf5 {[%clk 0:00:05]} 94. Qxg6+ {[%clk 0:00:05]}  Kf4 {[%clk 0:00:05]} 95. Qh5 {[%clk 0:00:05]}  Ke3 {[%clk 0:00:06]} 96. Ke6 {[%clk 0:00:05]}  Kf4 {[%clk 0:00:06]} 97. Qf5+ {[%clk 0:00:05]}  Kg3 {[%clk 0:00:07]} 98. Qe4 {[%clk 0:00:05]}  Kf2 {[%clk 0:00:07]} 99. Kf5 {[%clk 0:00:05]}  Kg3 {[%clk 0:00:08]} 100. Kg5 {[%clk 0:00:05]}  Kh3 {[%clk 0:00:09]} 101. Qg4+ {[%clk 0:00:05]}  Kh2 {[%clk 0:00:10]} 102. Kf4 {[%clk 0:00:05]}  Kh1 {[%clk 0:00:10]} 103. Kf3 {[%clk 0:00:06]}  Kh2 {[%clk 0:00:10]} 104. Qg2# {[%clk 0:00:06]} 1-0


[Site "https://www.chess.com"]